[Event "Hungarian Youth-ch U14 2022"]
[Site "Eger"]
[Date "2022.07.27"]
[Round "5.6"]
[White "Karacsonyi, Luca"]
[Black "Lazsadi, Kerka Lilla"]
[Result "0-1"]
[ECO "C03"]
[WhiteElo "1789"]
[BlackElo "1674"]
[Annotator "NA RC COMBH"]
[PlyCount "96"]
[EventDate "2022.07.21"]
[EventType "tourn"]
[EventCountry "HUN"]
[SourceTitle "playchess.com"]
[Source "ChessBase"]
[SourceQuality "1"]
[TimeControl "40/5400+30:1800+30"]

1. e4 {[%emt 0:00:33]} e6 {[%emt 0:00:40]} 2. d4 {[%emt 0:00:06]} d5 {[%emt 0:00:06]} 3. Nd2 {[%emt 0:00:08]} Be7 {[%emt 0:00:32]} 4. Ngf3 {[%emt 0:02:07]} Nf6 {[%emt 0:00:28]} 5. e5 {[%emt 0:00:52]} Nfd7 {[%emt 0:00:12]} 6. Bd3 {[%emt 0:04:25]} c5 {[%emt 0:00:47]} 7. c3 {[%emt 0:00:28]} Nc6 {[%emt 0:00:20]} 8. O-O {[%emt 0:10:31]} Qb6 {[%emt 0:02:29]} 9. Qb3 {[%emt 0:06:48]} c4 {[%emt 0:01:42]} 10. Qxb6 {[%emt 0:00:11]} axb6 {[%emt 0:00:05]} 11. Bc2 {[%emt 0:00:19]} b5 {[%emt 0:00:24]} 12. b4 {[%emt 0:05:55]} f6 {[%emt 0:04:12]} 13. Re1 {[%emt 0:04:09]} fxe5 {[%emt 0:02:06]} 14. dxe5 {[%emt 0:00:57]} Bd8 {[%emt 0:04:29]} 15. Nf1 {[%emt 0:03:39]} Bc7 {[%emt 0:01:39]} 16. Bf4 {[%emt 0:00:52]} Ra3 {[%emt 0:03:49]} 17. Nd4 {[%emt 0:05:56]} Nxd4 {[%emt 0:03:56]} 18. cxd4 {[%emt 0:00:09]} O-O {[%emt 0:02:15]} 19. Be3 {[%emt 0:03:24]} Nb8 {[%emt 0:06:40]} 20. Bc1 {[%emt 0:06:22]} Ra6 {[%emt 0:01:26]} 21. Bb2 {[%emt 0:02:37]} Nc6 {[%emt 0:00:26]} 22. a3 {[%emt 0:00:59]} Bd7 {[%emt 0:03:29]} 23. Re3 {[%emt 0:03:41]} Be8 {[%emt 0:04:35]} 24. Rh3 {[%emt 0:04:25]} h6 {[%emt 0:01:30]} 25. Re1 {[%emt 0:06:18]} Bb6 {[%emt 0:04:16]} 26. Rd1 {[%emt 0:05:29]} c3 {[%emt 0:02:42]} 27. Bxc3 {[%emt 0:01:27]} Rxa3 {[%emt 0:00:20]} 28. Bb1 {[%emt 0:12:31]} Ra4 {[%emt 0:02:34]} 29. Bc2 {[%emt 0:00:33]} Ra2 {[%emt 0:00:17]} 30. Ne3 {[%emt 0:00:59]} Nxe5 {[%emt 0:10:21]} 31. Bb1 {[%emt 0:02:18]} Ra3 {[%emt 0:01:08]} 32. Bb2 {[%emt 0:02:20]} Rb3 {[%emt 0:00:19]} 33. Nxd5 {[%emt 0:01:35]} Rxh3 {[%emt 0:02:17]} 34. Nxb6 {[%emt 0:01:50]} Rb3 {[%emt 0:00:14]} 35. Ba1 {[%emt 0:01:19]} Nc4 {[%emt 0:01:00]} 36. Ba2 {[%emt 0:00:46]} Rxb4 {[%emt 0:01:36]} 37. Bc3 {[%emt 0:00:20]} Nxb6 {[%emt 0:01:22]} 38. Bxe6+ {[%emt 0:00:40]} Bf7 {[%emt 0:00:15]} 39. Bxf7+ {[%emt 0:00:06]} Rxf7 {[%emt 0:00:05]} 40. Bxb4 {[%emt 0:00:00]} Nd5 {[%emt 0:00:00]} 41. Bd2 {[%emt 0:08:00]} Rc7 {[%emt 0:01:02]} 42. Rc1 {[%emt 0:06:56]} Rc4 {[%emt 0:00:24]} 43. Rb1 {[%emt 0:05:13]} Rxd4 {[%emt 0:05:03]} 44. Be3 {[%emt 0:01:15]} Rd3 {[%emt 0:00:59]} 45. g3 {[%emt 0:02:06]} b4 {[%emt 0:00:51]} 46. Kf1 {[%emt 0:01:28]} b3 {[%emt 0:00:26]} 47. Ke2 {[%emt 0:03:34]} Rxe3+ {[%emt 0:00:39]} 48. Kd2 {[%emt 0:01:57]} Rf3 {[%emt 0:00:21]} 0-1

[Event "Hungarian Youth-ch U14 2022"]
[Site "Eger"]
[Date "2022.07.27"]
[Round "5.7"]
[White "Horvath, Greta"]
[Black "Nandin-Erdene, Davaademberel"]
[Result "0-1"]
[ECO "B12"]
[WhiteElo "1346"]
[BlackElo "1789"]
[Annotator "NA RC COMBH"]
[PlyCount "80"]
[EventDate "2022.07.21"]
[EventType "tourn"]
[EventCountry "HUN"]
[SourceTitle "playchess.com"]
[Source "ChessBase"]
[SourceQuality "1"]
[TimeControl "40/5400+30:1800+30"]

1. e4 {[%emt 0:00:34]} c6 {[%emt 0:00:37]} 2. d4 {[%emt 0:00:07]} d5 {[%emt 0:00:03]} 3. e5 {[%emt 0:00:08]} Bf5 {[%emt 0:00:07]} 4. Nf3 {[%emt 0:00:09]} e6 {[%emt 0:00:24]} 5. Be2 {[%emt 0:00:15]} Nd7 {[%emt 0:00:18]} 6. O-O {[%emt 0:01:01]} Ne7 {[%emt 0:00:22]} 7. Nbd2 {[%emt 0:01:37]} h6 {[%emt 0:01:10]} 8. c3 {[%emt 0:04:05]} g5 {[%emt 0:01:53]} 9. h4 {[%emt 0:17:01]} gxh4 {[%emt 0:10:52]} 10. Nxh4 {[%emt 0:01:10]} Bg7 {[%emt 0:07:11]} 11. Nxf5 {[%emt 0:08:10]} Nxf5 {[%emt 0:01:08]} 12. Bg4 {[%emt 0:04:08]} Nf8 {[%emt 0:04:07]} 13. Bxf5 {[%emt 0:07:00]} exf5 {[%emt 0:00:08]} 14. Qf3 {[%emt 0:12:08]} Qd7 {[%emt 0:03:21]} 15. Nb3 {[%emt 0:02:58]} b6 {[%emt 0:01:49]} 16. Re1 {[%emt 0:04:06]} Qe6 {[%emt 0:03:40]} 17. a4 {[%emt 0:07:26]} Nd7 {[%emt 0:01:15]} 18. Bf4 {[%emt 0:01:34]} O-O-O {[%emt 0:05:15]} 19. Nd2 {[%emt 0:02:24]} h5 {[%emt 0:04:29]} 20. c4 {[%emt 0:04:57]} Bh6 {[%emt 0:02:56]} 21. Rec1 {[%emt 0:01:55]} Kb7 {[%emt 0:02:10]} 22. a5 {[%emt 0:02:35]} Bxf4 {[%emt 0:01:42]} 23. Qxf4 {[%emt 0:00:41]} Rhg8 {[%emt 0:02:18]} 24. axb6 {[%emt 0:02:21]} axb6 {[%emt 0:04:03]} 25. cxd5 {[%emt 0:00:50]} Qxd5 {[%emt 0:00:25]} 26. Nf3 {[%emt 0:01:35]} Rg4 {[%emt 0:05:03]} 27. Qe3 {[%emt 0:01:52]} Rdg8 {[%emt 0:11:54]} 28. g3 {[%emt 0:05:36]} Rb8 {[%emt 0:07:03]} 29. Qa3 {[%emt 0:00:57]} f4 {[%emt 0:07:14]} 30. Qa7+ {[%emt 0:01:50]} Kc8 {[%emt 0:00:10]} 31. Qa6+ {[%emt 0:00:10]} Kd8 {[%emt 0:00:36]} 32. Nh2 {[%emt 0:01:48]} Rg6 {[%emt 0:02:12]} 33. Qd3 {[%emt 0:00:56]} fxg3 {[%emt 0:00:55]} 34. fxg3 {[%emt 0:00:24]} Nxe5 {[%emt 0:03:47]} 35. Qe3 {[%emt 0:00:57]} h4 {[%emt 0:04:04]} 36. g4 {[%emt 0:02:03]} Nxg4 {[%emt 0:00:11]} 37. Nxg4 {[%emt 0:00:43]} Rxg4+ {[%emt 0:00:03]} 38. Kf1 {[%emt 0:00:18]} Qg2+ {[%emt 0:00:08]} 39. Ke1 {[%emt 0:00:13]} Re4 {[%emt 0:00:12]} 40. Qxe4 {[%emt 0:00:00]} Qxe4+ 0-1

[Event "Hungarian Youth-ch U14 2022"]
[Site "Eger"]
[Date "2022.07.27"]
[Round "5.8"]
[White "Beznicza, Mira"]
[Black "Kovacs, Reka"]
[Result "0-1"]
[ECO "C63"]
[WhiteElo "1608"]
[BlackElo "1716"]
[Annotator "NA RC COMBH"]
[PlyCount "60"]
[EventDate "2022.07.21"]
[EventType "tourn"]
[EventCountry "HUN"]
[SourceTitle "playchess.com"]
[Source "ChessBase"]
[SourceQuality "1"]
[TimeControl "40/5400+30:1800+30"]

1. e4 {[%emt 0:00:33]} e5 {[%emt 0:00:40]} 2. Nf3 {[%emt 0:00:31]} Nc6 {[%emt 0:00:15]} 3. Bb5 {[%emt 0:00:15]} f5 {[%emt 0:00:25]} 4. d3 {[%emt 0:02:25]} fxe4 {[%emt 0:00:24]} 5. dxe4 {[%emt 0:02:40]} Nf6 {[%emt 0:04:16]} 6. Bg5 {[%emt 0:07:08]} Bc5 {[%emt 0:05:30]} 7. O-O {[%emt 0:04:36]} d6 {[%emt 0:03:08]} 8. c3 {[%emt 0:03:46]} Be6 {[%emt 0:21:37]} 9. Nbd2 {[%emt 0:08:06]} O-O {[%emt 0:05:20]} 10. Bc4 {[%emt 0:08:01]} Qd7 {[%emt 0:03:23]} 11. Qb3 {[%emt 0:07:08]} Bxc4 {[%emt 0:16:36]} 12. Nxc4 {[%emt 0:09:25]} Kh8 {[%emt 0:00:59]} 13. Bxf6 {[%emt 0:03:26]} Rxf6 {[%emt 0:00:30]} 14. Rad1 {[%emt 0:01:21]} Raf8 {[%emt 0:06:57]} 15. Ncxe5 {[%emt 0:10:36]} Nxe5 {[%emt 0:03:35]} 16. Nxe5 {[%emt 0:00:37]} Rxf2 {[%emt 0:03:19]} 17. Rxf2 {[%emt 0:01:46]} Bxf2+ {[%emt 0:01:02]} 18. Kh1 {[%emt 0:00:55]} Qe7 {[%emt 0:01:40]} 19. Nd3 {[%emt 0:05:53]} Qxe4 {[%emt 0:01:13]} 20. Qc2 {[%emt 0:01:27]} Bb6 {[%emt 0:02:40]} 21. Qd2 {[%emt 0:03:36]} h6 {[%emt 0:03:38]} 22. Re1 {[%emt 0:02:49]} Qg6 {[%emt 0:02:32]} 23. Qe2 {[%emt 0:05:25]} Qf7 {[%emt 0:01:34]} 24. h3 {[%emt 0:02:56]} Qxa2 {[%emt 0:02:05]} 25. Qg4 {[%emt 0:02:07]} Qf7 {[%emt 0:00:55]} 26. Qe4 {[%emt 0:02:30]} c6 {[%emt 0:02:38]} 27. Nc1 {[%emt 0:01:16]} d5 {[%emt 0:00:31]} 28. Qg4 {[%emt 0:00:44]} Bc7 {[%emt 0:01:24]} 29. Nd3 {[%emt 0:00:13]} Qf1+ {[%emt 0:00:39]} 30. Rxf1 {[%emt 0:00:18]} Rxf1# {[%emt 0:00:07]} 0-1

[Event "Hungarian Youth-ch U14 2022"]
[Site "Eger"]
[Date "2022.07.27"]
[Round "5.9"]
[White "Eros, Vivien"]
[Black "Toth, Timea"]
[Result "1-0"]
[ECO "E61"]
[WhiteElo "1599"]
[BlackElo "1964"]
[Annotator "TA"]
[PlyCount "95"]
[EventDate "2022.07.21"]
[EventType "tourn"]
[EventCountry "HUN"]
[SourceTitle "playchess.com"]
[Source "ChessBase"]
[SourceQuality "1"]
[TimeControl "40/5400+30:1800+30"]

{[%evp 14,95,49,18,64,40,69,37,53,25,51,16,54,29,63,48,58,10,83,70,100,95,120,67,102,96,150,147,153,154,148,133,155,89,283,281,540,540,506,484,1222,1127,1238,811,5585,5385,1957,1418,1141,1160,911,885,868,859,852,857,813,772,1681,1709,850,804,5202,2799,1589,891,1756,1749,1076,834,29970,29972,29983,5697,29986,29983,29983,29984,29984,29983,29983,29983,29983,29984]} 1. d4 {[%emt 0:00:31]} Nf6 {[%emt 0:00:34]} 2. c4 {[%emt 0:00:03]} g6 {[%emt 0:00:08]} 3. Nc3 {[%emt 0:00:03]} Bg7 {[%emt 0:00:10]} 4. Nf3 {[%emt 0:00:03]} O-O {[%emt 0:00:13]} 5. Bg5 {[%emt 0:00:05]} d6 {[%emt 0:00:37]} 6. e3 {[%emt 0:00:05]} Nbd7 {[%emt 0:00:57]} 7. Be2 {[%emt 0:00:07]} c5 {[%emt 0:01:12] 7...e5 is a critical line.} 8. O-O {[%emt 0:00:08]} b6 {[%emt 0:00:40] E61: King's Indian: Early deviations for White, including Smyslov System.} (8... h6 $11 9. Bh4 cxd4 10. exd4 Nh5) 9. Qc2 {[%emt 0:00:49]} Bb7 {[%emt 0:00:26]} 10. Rfd1 {[%emt 0:00:18]} a6 {[%emt 0:07:41] [#] White is slightly better.} 11. a4 $146 {[%emt 0:02:38]} ({Predecessor:} 11. Rac1 Rc8 12. b3 cxd4 13. exd4 d5 14. Qb1 dxc4 15. bxc4 Qc7 16. h3 Rfe8 17. Be3 {1-0 (35) Rial,A (1656)-Itagyba,R (1715) Sao Paulo 2017}) 11... Qc7 {[%emt 0:06:11]} 12. Rab1 {[%emt 0:11:30]} Rfc8 {[%emt 0:15:14]} 13. b3 {[%emt 0:11:04]} Rab8 {[%emt 0:28:52]} 14. d5 {[%emt 0:08:29]} Re8 {[%emt 0:03:12]} 15. Qd2 {[%emt 0:07:51]} (15. h3 $14 {was preferrable.}) 15... Bc8 {[%emt 0:06:51]} (15... h6 $11 {keeps the balance.} 16. Bh4 g5) 16. e4 $16 {[%emt 0:02:33] White is more active.} Ng4 {[%emt 0:15:49]} 17. h3 {[%emt 0:07:22]} Nge5 {[%emt 0:03:30]} 18. Nxe5 {[%emt 0:00:56]} (18. Nh2 $16) 18... Nxe5 {[%emt 0:02:31]} 19. Bh6 {[%emt 0:00:51]} f5 {[%emt 0:02:32]} ({Black should try} 19... Bh8) 20. Bxg7 {[%emt 0:02:02]} Kxg7 {[%emt 0:00:02]} 21. f4 {[%emt 0:05:26]} Nf7 {[%emt 0:00:16]} 22. Qb2 {[%emt 0:05:35] [#] Threatens to win with Nb5+.} Kg8 {[%emt 0:00:16]} 23. g4 {[%emt 0:02:09]} (23. exf5 $142 Bxf5 24. Ra1) 23... Nh6 $2 {[%emt 0:01:14] This move loses the game for Black.} (23... fxg4 $16 24. hxg4 (24. Bxg4 Bxg4 25. hxg4 g5 $11) 24... Qd8) 24. gxf5 $18 {[%emt 0:03:19]} gxf5 $2 {[%emt 0:00:13]} (24... Rf8 25. Kh2 Nxf5 26. exf5 Bxf5) 25. Bh5 {[%emt 0:02:46]} Rf8 {[%emt 0:00:19]} 26. Kh1 {[%emt 0:00:43] Black must now prevent Rg1+.} fxe4 {[%emt 0:01:33]} (26... Rf6 $142 27. Rg1+ Kh8) 27. Rg1+ {[%emt 0:00:15]} Ng4 {[%emt 0:01:18]} 28. Ne2 {[%emt 0:03:49]} e5 {[%emt 0:00:53]} 29. dxe6 {[%emt 0:00:20]} Bxe6 {[%emt 0:00:12]} 30. Rxg4+ {[%emt 0:01:55]} Bxg4 {[%emt 0:00:00]} 31. Rg1 {[%emt 0:00:00][%mdl 64] [#] Pin} Rf7 {[%emt 0:01:09]} 32. Bxf7+ {[%emt 0:00:00]} Kxf7 {[%emt 0:00:06]} 33. Rxg4 {[%emt 0:00:00] Qg7+ would kill now.} Rg8 {[%emt 0:00:15] Inhibits Qg7+.} 34. Rxg8 {[%emt 0:01:20]} Kxg8 {[%emt 0:00:03]} 35. Nc3 {[%emt 0:02:04] And now Nd5 would win.} e3 {[%emt 0:00:58]} 36. Qg2+ {[%emt 0:00:16]} Kf8 {[%emt 0:00:25]} 37. Qe4 {[%emt 0:00:19]} h5 {[%emt 0:01:28]} 38. Qf5+ {[%emt 0:01:00]} Kg8 {[%emt 0:00:24]} 39. Qe6+ {[%emt 0:00:00]} Kg7 {[%emt 0:00:00]} 40. Qxe3 {[%emt 0:00:00]} Qb7+ {[%emt 0:00:00]} 41. Nd5 {[%emt 0:02:01] Intending f5 and mate.} Kh8 {[%emt 0:01:47]} 42. Qe8+ {[%emt 0:00:11]} Kg7 {[%emt 0:00:26]} 43. Qxh5 {[%emt 0:00:32]} (43. f5 $142 Qf7 44. f6+ Qxf6 45. Nxf6 Kxf6 46. Qxh5 Ke6 47. Qd5+ Kd7 48. Qb7+ Ke6 49. Qxa6) 43... b5 {[%emt 0:00:32]} 44. Qg5+ {[%emt 0:00:21] White mates.} Kf8 {[%emt 0:00:19]} 45. axb5 {[%emt 0:01:07]} axb5 {[%emt 0:00:16]} 46. Qd8+ {[%emt 0:00:12]} Kf7 {[%emt 0:00:19]} 47. Qc7+ {[%emt 0:01:37]} Qxc7 {[%emt 0:00:06]} 48. Nxc7 {[%emt 0:00:04] Weighted Error Value: White=0.24 (precise) /Black=0.55} 1-0

[Event "Hungarian Youth-ch U14 2022"]
[Site "Eger"]
[Date "2022.07.27"]
[Round "5.10"]
[White "Szarvas, Nora Orsolya"]
[Black "Balazs, Sztella Anna"]
[Result "0-1"]
[ECO "C26"]
[WhiteElo "1692"]
[BlackElo "1663"]
[Annotator "NA RC COMBH"]
[PlyCount "102"]
[EventDate "2022.07.21"]
[EventType "tourn"]
[EventCountry "HUN"]
[SourceTitle "playchess.com"]
[Source "ChessBase"]
[SourceQuality "1"]
[TimeControl "40/5400+30:1800+30"]

1. e4 {[%emt 0:00:33]} e5 {[%emt 0:00:33]} 2. Nc3 {[%emt 0:00:25]} Nf6 {[%emt 0:00:08]} 3. f4 {[%emt 0:00:14]} exf4 {[%emt 0:00:26]} 4. e5 {[%emt 0:00:13]} Ng8 {[%emt 0:01:43]} 5. Nf3 {[%emt 0:00:16]} d6 {[%emt 0:00:39]} 6. d4 {[%emt 0:01:52]} dxe5 {[%emt 0:03:06]} 7. Qe2 {[%emt 0:14:39]} Be6 {[%emt 0:15:04]} 8. Qxe5 {[%emt 0:10:26]} Nf6 {[%emt 0:06:52]} 9. Bxf4 {[%emt 0:08:05]} Bd6 {[%emt 0:02:31]} 10. Qe3 {[%emt 0:05:31]} O-O {[%emt 0:03:22]} 11. O-O-O {[%emt 0:03:11]} Ng4 {[%emt 0:08:47]} 12. Qd2 {[%emt 0:06:56]} Bxf4 {[%emt 0:00:16]} 13. Qxf4 {[%emt 0:00:04]} Nf2 {[%emt 0:00:12]} 14. Bd3 {[%emt 0:01:03]} h6 {[%emt 0:08:21]} 15. h4 {[%emt 0:05:48]} Nd7 {[%emt 0:05:48]} 16. d5 {[%emt 0:02:11]} Bg4 {[%emt 0:01:52]} 17. Rdf1 {[%emt 0:01:37]} Nxd3+ {[%emt 0:05:03]} 18. cxd3 {[%emt 0:01:23]} Bh5 {[%emt 0:00:32]} 19. g4 {[%emt 0:01:14]} Bg6 {[%emt 0:00:07]} 20. Rd1 {[%emt 0:13:03]} Nb6 {[%emt 0:08:22]} 21. h5 {[%emt 0:03:20]} Nxd5 {[%emt 0:01:27]} 22. Nxd5 {[%emt 0:06:02]} Qxd5 {[%emt 0:00:09]} 23. g5 {[%emt 0:01:01]} hxg5 {[%emt 0:06:30]} 24. Nxg5 {[%emt 0:00:25]} Bxd3 {[%emt 0:00:18]} 25. b3 {[%emt 0:07:37]} Qc5+ {[%emt 0:02:05]} 26. Kb2 {[%emt 0:02:19]} Rad8 {[%emt 0:08:33]} 27. Rd2 {[%emt 0:02:04]} Qd4+ {[%emt 0:00:59]} 28. Qxd4 {[%emt 0:00:05]} Rxd4 {[%emt 0:00:06]} 29. Nf3 {[%emt 0:01:19]} Rd5 {[%emt 0:01:11]} 30. Rhd1 {[%emt 0:00:25]} Rfd8 {[%emt 0:00:13]} 31. Kc3 {[%emt 0:00:49]} Be4 {[%emt 0:00:12]} 32. Rxd5 {[%emt 0:00:16]} Rxd5 {[%emt 0:00:05]} 33. Rxd5 {[%emt 0:00:10]} Bxd5 {[%emt 0:00:04]} 34. Ne5 {[%emt 0:00:22]} f6 {[%emt 0:00:53]} 35. Ng6 {[%emt 0:00:20]} Bf3 {[%emt 0:00:18]} 36. Nf4 {[%emt 0:00:16]} Kh7 {[%emt 0:00:55]} 37. Kd3 {[%emt 0:00:19]} Kh6 {[%emt 0:00:48]} 38. Ke3 {[%emt 0:00:11]} Bxh5 {[%emt 0:00:09]} 39. Ne6 {[%emt 0:00:03]} Bg6 {[%emt 0:02:16]} 40. Nxc7 {[%emt 0:00:00]} Bb1 {[%emt 0:00:00]} 41. a3 {[%emt 0:00:23]} Bc2 {[%emt 0:00:40]} 42. b4 {[%emt 0:00:08]} Ba4 {[%emt 0:00:19]} 43. Ne6 {[%emt 0:00:19]} Bc6 {[%emt 0:00:29]} 44. Kf4 {[%emt 0:00:22]} g5+ {[%emt 0:00:30]} 45. Kg3 {[%emt 0:00:26]} f5 {[%emt 0:00:35]} 46. Nd4 {[%emt 0:01:21]} Kg6 {[%emt 0:00:51]} 47. b5 {[%emt 0:02:07]} Bd5 {[%emt 0:01:19]} 48. a4 {[%emt 0:00:26]} Kf6 {[%emt 0:02:08]} 49. a5 {[%emt 0:01:47]} Ke5 {[%emt 0:01:00]} 50. Nc2 {[%emt 0:00:28]} Kd6 {[%emt 0:03:45]} 51. Nd4 {[%emt 0:00:27]} Be4 {[%emt 0:00:44]} 0-1

[Event "Hungarian Youth-ch U14 2022"]
[Site "Eger"]
[Date "2022.07.28"]
[Round "6.1"]
[White "Szegedy, Matyas"]
[Black "Csernyik, Mark"]
[Result "1-0"]
[ECO "B30"]
[WhiteElo "2152"]
[BlackElo "2022"]
[Annotator "TA"]
[PlyCount "93"]
[EventDate "2022.07.21"]
[EventType "tourn"]
[EventCountry "HUN"]
[SourceTitle "playchess.com"]
[Source "ChessBase"]
[SourceQuality "1"]
[TimeControl "40/5400+30:1800+30"]

{[%evp 9,93,45,45,42,54,30,29,3,8,7,10,0,20,10,11,7,32,0,7,0,55,0,-4,-4,0,-3,3,0,0,0,13,0,14,-29,-8,-14,-18,-21,51,58,72,58,59,63,141,59,66,26,64,53,70,0,37,-10,-12,-12,-16,-98,-33,-15,13,9,23,16,141,11,164,127,287,270,937,488,463,424,399,404,1039,392,624,616,29982,29983,29982,29983,29968,5289]} 1. e4 {[%emt 0:00:45]} c5 {[%emt 0:00:40]} 2. Nf3 {[%emt 0:00:44]} Nc6 {[%emt 0:00:25]} 3. Bb5 {[%emt 0:00:48]} e5 {[%emt 0:00:12]} 4. O-O {[%emt 0:01:26]} Bd6 {[%emt 0:01:06]} 5. c3 {[%emt 0:02:10]} a6 {[%emt 0:00:17]} 6. Ba4 {[%emt 0:02:44] B30: Sicilian: 2...Nc6 3 Bb5, lines without ...g6.} b5 {[%emt 0:00:31]} 7. Bc2 {[%emt 0:00:12]} Nge7 {[%emt 0:04:20]} 8. d4 {[%emt 0:03:40] White has an edge.} cxd4 {[%emt 0:01:54]} 9. cxd4 {[%emt 0:00:14]} exd4 {[%emt 0:01:23]} 10. Nxd4 {[%emt 0:02:35]} Qc7 {[%emt 0:03:52]} 11. h3 {[%emt 0:17:29]} Nxd4 {[%emt 0:08:02]} 12. Qxd4 {[%emt 0:00:16]} O-O {[%emt 0:00:49]} 13. Bb3 {[%emt 0:07:53] [#]} (13. Qd3 $5 {[%cal Re4e5]} Bc5 14. Nc3 $14 (14. e5 Ng6 $15)) 13... Bb7 $146 {[%emt 0:06:36]} ({Predecessor:} 13... b4 14. Be3 a5 15. a3 Be5 16. Qd2 bxa3 17. Rxa3 Rb8 18. Rd1 a4 19. Bxa4 Rxb2 {1-0 (32) Celinski,K (1876)-Goraj,B (2035) Warsaw 2022}) 14. Nc3 {[%emt 0:04:29]} b4 {[%emt 0:06:21]} ({Better is} 14... Be5 $11 15. Qd3 b4) 15. Nd5 {[%emt 0:06:31]} (15. Na4 $1 $14) 15... Nxd5 $11 {[%emt 0:00:44]} 16. Bxd5 {[%emt 0:00:18]} Bc5 {[%emt 0:07:34]} 17. Qd3 {[%emt 0:05:40]} Bc6 {[%emt 0:02:26]} 18. Rd1 {[%emt 0:04:05]} Bxd5 {[%emt 0:03:29]} 19. Qxd5 {[%emt 0:00:57]} Qb6 {[%emt 0:01:02]} 20. Qf5 {[%emt 0:05:15]} d6 {[%emt 0:02:53]} 21. Bg5 {[%emt 0:05:05]} Rfe8 {[%emt 0:02:44]} (21... Rae8 $5 {[%cal Re8e5]}) 22. Kh1 {[%emt 0:14:46]} Re5 {[%emt 0:02:23]} 23. Qg4 {[%emt 0:00:33]} Kh8 {[%emt 0:04:45]} (23... h5 $11 24. Qxh5 Rxe4) 24. f3 $1 $14 {[%emt 0:00:30]} Rae8 {[%emt 0:01:09]} 25. Rd2 {[%emt 0:06:45]} a5 {[%emt 0:09:35]} 26. Rad1 {[%emt 0:01:58]} a4 {[%emt 0:01:11]} (26... h6 $14 27. Bf4 R5e6) 27. Bf4 {[%emt 0:00:09]} (27. Qd7 $1 $16) 27... R5e6 $1 {[%emt 0:00:10]} 28. Qg3 {[%emt 0:02:14][%cal Rf4d6] White is more active.} Rg6 {[%emt 0:00:27]} 29. Qh2 $40 {[%emt 0:00:08][%cal Rf4d6][%mdl 128] White has some attack.} b3 {[%emt 0:01:45]} 30. a3 {[%emt 0:01:59]} ({White should try} 30. axb3 $1 $14 Qxb3 31. Bxd6 Bxd6 32. Rxd6) 30... Rc8 {[%emt 0:00:28]} 31. e5 {[%emt 0:02:21]} (31. Bxd6 $14 Rxd6 32. Rxd6 Bxd6 33. Qxd6 Qxd6 34. Rxd6) 31... dxe5 $11 {[%emt 0:01:40]} 32. Bxe5 {[%emt 0:00:01]} h6 {[%emt 0:00:44] Strongly threatening ...Be3.} 33. Bc3 {[%emt 0:00:31] [#]} (33. Qf4 $11 {remains equal.}) 33... Bxa3 {[%emt 0:02:10]} 34. Qf4 $1 $15 {[%emt 0:00:18]} Bc5 {[%emt 0:07:09] ...Be3 is the strong threat.} 35. Qxa4 {[%emt 0:00:19]} Re6 {[%emt 0:01:05]} 36. Qg4 {[%emt 0:00:35][%csl Gc3][%cal Rg4g7]} Rg8 {[%emt 0:04:22] [#]} (36... f6 $1 $11 {keeps the balance.}) 37. Rd7 {[%emt 0:01:10]} ({White must play} 37. Rd8 $1 $16 {[%csl Gc3][%cal Rg4g7][%mdl 512]} Re1+ 38. Rxe1 Qxd8 39. Qh5) 37... Rg6 {[%emt 0:01:04]} (37... f6 $11 {and Black stays safe.}) 38. Qf5 {[%emt 0:00:40]} Rg5 $2 {[%emt 0:02:49]} (38... Bb4 $16) 39. Qxf7 $18 {[%emt 0:00:26] aiming for h4.} Qb8 $2 {[%emt 0:02:07]} (39... Qg6 40. g4 (40. Qxb3 Rxg2 41. Bxg7+ Rxg7 $11) 40... Rf8 41. Qxb3 Qe8) 40. f4 {[%emt 0:00:00]} Rg3 {[%emt 0:00:00]} 41. Kh2 {[%emt 0:09:16]} Rxc3 {[%emt 0:02:23]} 42. bxc3 {[%emt 0:00:39]} Be3 {[%emt 0:01:25]} (42... Qf8 $142 43. Qxb3 Qxf4+ 44. Kh1 Rf8) 43. g3 $2 {[%emt 0:09:51]} (43. R1d6 {[%cal Od6h6] White threatens Rxh6+! and mate.} Qxd6 44. Rxd6) 43... b2 {[%emt 0:00:14]} (43... Qb5 $142 44. h4 (44. Rd8 Qe2+ 45. Kh1 Qf3+ 46. Kh2 Qe2+ 47. Kh1 Qf3+ 48. Kh2 Qe2+ $11) 44... Qe2+ 45. Kh3 Bb6) 44. Rb7 {[%emt 0:02:01]} Bc1 {[%emt 0:00:18]} 45. Rxb8 {[%emt 0:00:31] White mates.} Rxb8 {[%emt 0:00:26]} 46. Rd7 {[%emt 0:00:15][%csl Gd7][%cal Rf7g7]} Rg8 {[%emt 0:00:19]} 47. Rb7 {[%emt 0:00:08] Weighted Error Value: White=0.49/Black=0.57} 1-0

[Event "Hungarian Youth-ch U14 2022"]
[Site "Eger"]
[Date "2022.07.28"]
[Round "6.2"]
[White "Giang, Tran Nam"]
[Black "Matyassy, Lazar"]
[Result "1/2-1/2"]
[ECO "B10"]
[WhiteElo "2144"]
[BlackElo "2132"]
[Annotator "TA"]
[PlyCount "42"]
[EventDate "2022.07.21"]
[EventType "tourn"]
[EventCountry "HUN"]
[SourceTitle "playchess.com"]
[Source "ChessBase"]
[SourceQuality "1"]
[TimeControl "40/5400+30:1800+30"]

{[%evp 10,42,28,19,16,0,32,10,14,10,10,0,1,6,12,18,12,5,5,4,4,0,72,60,56,0,1,0,0,0,0,0,7,0,8]} 1. e4 {[%emt 0:00:32]} c6 {[%emt 0:00:36]} 2. Nf3 {[%emt 0:00:37]} d5 {[%emt 0:00:17]} 3. Nc3 {[%emt 0:00:04]} dxe4 {[%emt 0:00:08]} 4. Nxe4 {[%emt 0:00:09]} Nf6 {[%emt 0:00:05]} 5. Qe2 {[%emt 0:00:44]} Nxe4 {[%emt 0:00:16]} 6. Qxe4 {[%emt 0:00:12]} Qd5 {[%emt 0:00:05] B11: Caro-Kann: Two Knights Variation.} 7. Qh4 {[%emt 0:01:48]} Qf5 {[%emt 0:01:40]} 8. Bd3 {[%emt 0:06:35]} Qg4 {[%emt 0:02:04] [#]} 9. Qxg4 $146 {[%emt 0:03:10]} ({Predecessor:} 9. O-O Qxh4 10. Nxh4 g6 11. Re1 Bg7 12. Nf3 Nd7 13. Bf1 c5 14. d4 cxd4 15. Bg5 {½-½ (57) Djukic,N (2507)-Radovanovic,M (2479) Nis 2019}) 9... Bxg4 {[%emt 0:00:20]} 10. Ne5 {[%emt 0:00:42]} Be6 {[%emt 0:00:16]} 11. b3 {[%emt 0:04:31]} Nd7 {[%emt 0:01:58]} (11... f6 $5 {[%cal Rf6e5]} 12. Nc4 Na6 $11) 12. Nxd7 {[%emt 0:00:42]} Kxd7 {[%emt 0:04:38]} 13. Bb2 {[%emt 0:00:57]} f6 {[%emt 0:05:13]} 14. O-O-O {[%emt 0:02:24]} Bd5 {[%emt 0:05:44]} 15. f3 {[%emt 0:01:43]} e5 {[%emt 0:05:04] [#]} (15... Kc7 $11 {remains equal.}) 16. Bf5+ $1 $16 {[%emt 0:02:54]} Kc7 {[%emt 0:17:28]} 17. Kb1 {[%emt 0:07:18]} (17. c4 $14 Bf7 18. d4) 17... Bc5 {[%emt 0:09:26] The position is equal.} 18. d4 {[%emt 0:14:59]} exd4 {[%emt 0:01:58]} 19. Bxd4 {[%emt 0:00:43]} Bxd4 {[%emt 0:00:16]} 20. Rxd4 {[%emt 0:00:18] aiming for c4.} Rad8 {[%emt 0:03:23]} 21. Re1 {[%emt 0:04:04]} g6 {[%emt 0:03:53] Weighted Error Value: White=0.10 (very precise) /Black=0.14 (very precise)} 1/2-1/2